[Event "*** SCC Grand Prix: Titled Tuesday Blitz"]
[Site "Chess.com"]
[Date "2020.06.02"]
[Round "7"]
[White "MashaFromRussia"]
[Black "DonBroca"]
[Result "1-0"]
[WhiteElo "2387"]
[BlackElo "2183"]
[TimeControl "180+1"]
[EndTime "11:18:53 PDT"]
[Termination "MashaFromRussia won by resignation"]

1. d4 {[%clk 0:03:00.9]} 1... Nf6 {[%clk 0:02:39]} 2. c4 {[%clk 0:03:00.3]} 2...
d6 {[%clk 0:02:38.1]} 3. Nf3 {[%clk 0:02:59.5]} 3... g6 {[%clk 0:02:38.6]} 4. g3
{[%clk 0:02:59.2]} 4... Bg7 {[%clk 0:02:37.4]} 5. Bg2 {[%clk 0:02:59.6]} 5...
O-O {[%clk 0:02:37.9]} 6. O-O {[%clk 0:02:59.9]} 6... Nbd7 {[%clk 0:02:33.7]} 7.
Nc3 {[%clk 0:02:59.7]} 7... e5 {[%clk 0:02:34.1]} 8. dxe5 {[%clk 0:03:00.6]}
8... Nxe5 {[%clk 0:02:32.1]} 9. Nxe5 {[%clk 0:03:00]} 9... dxe5 {[%clk 0:02:33]}
10. Qxd8 {[%clk 0:03:00.5]} 10... Rxd8 {[%clk 0:02:33]} 11. Bg5 {[%clk
0:03:01.4]} 11... c6 {[%clk 0:02:33.2]} 12. Ne4 {[%clk 0:02:52.4]} 12... Nxe4
{[%clk 0:02:27]} 13. Bxd8 {[%clk 0:02:51.5]} 13... Nc5 {[%clk 0:02:26.9]} 14.
Be7 {[%clk 0:02:43.7]} 14... Ne6 {[%clk 0:02:20.4]} 15. Rad1 {[%clk 0:02:36.1]}
15... Nd4 {[%clk 0:02:20.2]} 16. e3 {[%clk 0:02:35.5]} 16... Ne6 {[%clk
0:02:17]} 17. Rd2 {[%clk 0:02:14.7]} 17... f6 {[%clk 0:02:16.7]} 18. Rfd1 {[%clk
0:02:10.3]} 18... Kf7 {[%clk 0:02:16.9]} 19. Ba3 {[%clk 0:02:10.3]} 19... c5
{[%clk 0:02:10.8]} 20. Bxb7 {[%clk 0:02:03.8]} 20... Rb8 {[%clk 0:02:01.5]} 21.
Bxc8 {[%clk 0:02:02.5]} 21... Rxc8 {[%clk 0:02:01.2]} 22. Rd7+ {[%clk
0:02:02.9]} 22... Kg8 {[%clk 0:02:01.2]} 23. Rxa7 {[%clk 0:02:01.8]} 23... Ng5
{[%clk 0:01:56.2]} 24. Kg2 {[%clk 0:02:01]} 24... Ne4 {[%clk 0:01:55.5]} 25. f3
{[%clk 0:01:58.5]} 25... Ng5 {[%clk 0:01:54.7]} 26. h4 {[%clk 0:01:58.2]} 26...
Ne6 {[%clk 0:01:54]} 27. Rd6 {[%clk 0:01:57.3]} 27... Nd8 {[%clk 0:01:50.7]} 28.
Bxc5 {[%clk 0:01:34.9]} 28... Nf7 {[%clk 0:01:42.9]} 29. Rdd7 {[%clk 0:01:25.2]}
29... Rxc5 {[%clk 0:01:42.4]} 30. Rxf7 {[%clk 0:01:24.9]} 30... Bf8 {[%clk
0:01:42.6]} 31. Rxf6 {[%clk 0:01:20.5]} 31... Rc8 {[%clk 0:01:42.2]} 32. Rff7
{[%clk 0:01:06.5]} 32... h5 {[%clk 0:01:41.9]} 33. Rac7 {[%clk 0:00:58.3]} 33...
Rb8 {[%clk 0:01:41]} 34. b3 {[%clk 0:00:58]} 34... Ra8 {[%clk 0:01:39.4]} 35. a4
{[%clk 0:00:57.8]} 35... Rb8 {[%clk 0:01:39.1]} 36. Rb7 {[%clk 0:00:57.7]} 36...
Rd8 {[%clk 0:01:38.8]} 37. Rfd7 {[%clk 0:00:57.6]} 37... Ra8 {[%clk 0:01:36]}
38. e4 {[%clk 0:00:52.8]} 38... Ra5 {[%clk 0:01:29.9]} 39. Rb8 {[%clk 0:00:47]}
39... Ra6 {[%clk 0:01:27.6]} 40. Rdd8 {[%clk 0:00:44.6]} 40... Rf6 {[%clk
0:01:28]} 41. a5 {[%clk 0:00:44.3]} 41... Kf7 {[%clk 0:01:27.1]} 42. Rxf8+
{[%clk 0:00:43.2]} 42... Ke6 {[%clk 0:01:26.3]} 43. Rxf6+ {[%clk 0:00:44.1]}
43... Kxf6 {[%clk 0:01:26.1]} 44. a6 {[%clk 0:00:45]} 1-0

[Event "*** SCC Grand Prix: Titled Tuesday Blitz"]
[Site "Chess.com"]
[Date "2020.06.02"]
[Round "7"]
[White "beto-betun"]
[Black "Training_Day"]
[Result "1-0"]
[WhiteElo "2173"]
[BlackElo "2313"]
[TimeControl "180+1"]
[EndTime "11:18:59 PDT"]
[Termination "beto-betun won on time"]

1. d4 {[%clk 0:02:58.2]} 1... d5 {[%clk 0:02:59.6]} 2. Nf3 {[%clk 0:02:58.2]}
2... e6 {[%clk 0:02:57.7]} 3. g3 {[%clk 0:02:58.1]} 3... c5 {[%clk 0:02:57.7]}
4. Bg2 {[%clk 0:02:57.5]} 4... Nc6 {[%clk 0:02:57.6]} 5. O-O {[%clk 0:02:53.7]}
5... cxd4 {[%clk 0:02:54.6]} 6. Nxd4 {[%clk 0:02:53.2]} 6... Bc5 {[%clk
0:02:55]} 7. Nb3 {[%clk 0:02:47.3]} 7... Bb6 {[%clk 0:02:52.5]} 8. c4 {[%clk
0:02:46.7]} 8... dxc4 {[%clk 0:02:49.8]} 9. Qxd8+ {[%clk 0:02:45.1]} 9... Kxd8
{[%clk 0:01:41.5]} 10. N3d2 {[%clk 0:02:43.4]} 10... Nf6 {[%clk 0:01:01.5]} 11.
Nxc4 {[%clk 0:02:42.4]} 11... Bc7 {[%clk 0:01:01.4]} 12. Nc3 {[%clk 0:02:41.9]}
12... Bd7 {[%clk 0:00:57.3]} 13. h3 {[%clk 0:02:40.3]} 13... Ke7 {[%clk
0:00:55.1]} 14. Be3 {[%clk 0:02:39.3]} 14... Rhd8 {[%clk 0:00:42.6]} 15. Rfd1
{[%clk 0:02:38]} 15... Rac8 {[%clk 0:00:32.3]} 16. a3 {[%clk 0:02:36.7]} 16...
a6 {[%clk 0:00:29.3]} 17. Rac1 {[%clk 0:02:36.1]} 17... b5 {[%clk 0:00:20.1]}
18. Nb6 {[%clk 0:02:34.3]} 18... Bxb6 {[%clk 0:00:14.4]} 19. Bxb6 {[%clk
0:02:35.2]} 19... Rg8 {[%clk 0:00:10.6]} 20. Rd2 {[%clk 0:02:34.2]} 20... Ne8
{[%clk 0:00:04.3]} 21. Rcd1 {[%clk 0:02:33]} 21... Nb8 {[%clk 0:00:04.2]} 22.
Ba7 {[%clk 0:02:05.1]} 22... Bc6 {[%clk 0:00:03.4]} 23. Bxc6 {[%clk 0:02:04.7]}
23... Nxc6 {[%clk 0:00:03.1]} 24. Rd7+ {[%clk 0:02:05.1]} 24... Kf6 {[%clk
0:00:03.2]} 25. Ne4+ {[%clk 0:01:51]} 25... Kg6 {[%clk 0:00:02.8]} 26. Be3
{[%clk 0:01:41]} 26... f5 {[%clk 0:00:02.3]} 27. Nd6 {[%clk 0:01:33.9]} 27...
Nxd6 {[%clk 0:00:02]} 28. R7xd6 {[%clk 0:01:34.8]} 28... Rge8 {[%clk 0:00:02.3]}
29. g4 {[%clk 0:01:27.8]} 29... fxg4 {[%clk 0:00:01.6]} 30. hxg4 {[%clk
0:01:28.7]} 30... Kf7 {[%clk 0:00:01.2]} 31. Bg5 {[%clk 0:01:25.8]} 1-0

[Event "*** SCC Grand Prix: Titled Tuesday Blitz"]
[Site "Chess.com"]
[Date "2020.06.02"]
[Round "7"]
[White "TERMINATOR_PC"]
[Black "Goryachkina"]
[Result "0-1"]
[WhiteElo "2482"]
[BlackElo "2660"]
[TimeControl "180+1"]
[EndTime "11:19:05 PDT"]
[Termination "Goryachkina won by resignation"]

1. e4 {[%clk 0:03:00.9]} 1... e6 {[%clk 0:02:59.6]} 2. d4 {[%clk 0:03:00.8]}
2... d5 {[%clk 0:02:59.9]} 3. Nc3 {[%clk 0:03:01.3]} 3... Bb4 {[%clk 0:02:59.7]}
4. exd5 {[%clk 0:03:01.8]} 4... exd5 {[%clk 0:02:59.6]} 5. Bd3 {[%clk
0:03:02.5]} 5... Nf6 {[%clk 0:02:56]} 6. Ne2 {[%clk 0:03:02.2]} 6... O-O {[%clk
0:02:55.6]} 7. Bg5 {[%clk 0:03:02.8]} 7... h6 {[%clk 0:02:53.1]} 8. Bh4 {[%clk
0:03:02.3]} 8... Be7 {[%clk 0:02:52.3]} 9. Qd2 {[%clk 0:02:55.5]} 9... Nc6
{[%clk 0:02:42.9]} 10. O-O-O {[%clk 0:02:51.7]} 10... Nb4 {[%clk 0:02:41.6]} 11.
f3 {[%clk 0:02:49.8]} 11... Nxd3+ {[%clk 0:02:36.3]} 12. Qxd3 {[%clk 0:02:50.7]}
12... c6 {[%clk 0:02:31.5]} 13. g4 {[%clk 0:02:50.3]} 13... b5 {[%clk
0:02:28.9]} 14. Rde1 {[%clk 0:02:45.6]} 14... b4 {[%clk 0:02:26.3]} 15. Na4
{[%clk 0:02:32.3]} 15... a5 {[%clk 0:02:24.2]} 16. g5 {[%clk 0:02:21.9]} 16...
Nh7 {[%clk 0:02:16.7]} 17. f4 {[%clk 0:02:16.7]} 17... hxg5 {[%clk 0:02:15.2]}
18. fxg5 {[%clk 0:02:10]} 18... Bxg5+ {[%clk 0:02:14.9]} 19. Bxg5 {[%clk
0:02:09]} 19... Qxg5+ {[%clk 0:02:14.6]} 20. Kb1 {[%clk 0:02:09.3]} 20... Bf5
{[%clk 0:02:08.5]} 21. Qd1 {[%clk 0:01:29.2]} 21... Rae8 {[%clk 0:01:58.6]} 22.
Ng3 {[%clk 0:01:18.5]} 22... Bg6 {[%clk 0:01:54.7]} 23. Nc5 {[%clk 0:01:10.6]}
23... Nf6 {[%clk 0:01:49.1]} 24. Rhg1 {[%clk 0:01:02.4]} 24... Rxe1 {[%clk
0:01:45.3]} 25. Rxe1 {[%clk 0:01:00.1]} 25... Re8 {[%clk 0:01:44.4]} 26. Rg1
{[%clk 0:00:45.9]} 26... Qe3 {[%clk 0:01:39]} 27. h4 {[%clk 0:00:41.1]} 27...
Qf2 {[%clk 0:01:29.4]} 28. Nd3 {[%clk 0:00:07]} 28... Bxd3 {[%clk 0:01:26.5]}
29. cxd3 {[%clk 0:00:07.9]} 29... Re3 {[%clk 0:01:23.9]} 30. Nh1 {[%clk
0:00:05.3]} 30... Qf5 {[%clk 0:01:22.9]} 31. Rf1 {[%clk 0:00:03.6]} 31... Qxd3+
{[%clk 0:01:21.9]} 32. Qxd3 {[%clk 0:00:04]} 32... Rxd3 {[%clk 0:01:22.8]} 0-1

[Event "*** SCC Grand Prix: Titled Tuesday Blitz"]
[Site "Chess.com"]
[Date "2020.06.02"]
[Round "7"]
[White "Ave_Mariia"]
[Black "suyu28"]
[Result "0-1"]
[WhiteElo "2313"]
[BlackElo "2579"]
[TimeControl "180+1"]
[EndTime "11:19:05 PDT"]
[Termination "suyu28 won by resignation"]

1. c4 {[%clk 0:03:00.9]} 1... e5 {[%clk 0:02:59.7]} 2. Nc3 {[%clk 0:02:57.6]}
2... Nf6 {[%clk 0:02:59.1]} 3. g3 {[%clk 0:02:57.3]} 3... Bb4 {[%clk 0:02:58.3]}
4. Bg2 {[%clk 0:02:57.1]} 4... O-O {[%clk 0:02:56.9]} 5. Nf3 {[%clk 0:02:53.1]}
5... Bxc3 {[%clk 0:02:56]} 6. bxc3 {[%clk 0:02:48.5]} 6... Re8 {[%clk
0:02:51.5]} 7. O-O {[%clk 0:02:48]} 7... Nc6 {[%clk 0:02:46.4]} 8. d4 {[%clk
0:02:29.8]} 8... d6 {[%clk 0:02:45.4]} 9. h3 {[%clk 0:02:13.6]} 9... h6 {[%clk
0:02:41.2]} 10. Qc2 {[%clk 0:02:09]} 10... e4 {[%clk 0:02:38.8]} 11. Nd2 {[%clk
0:02:03.7]} 11... Bf5 {[%clk 0:02:39.1]} 12. e3 {[%clk 0:02:01.9]} 12... Qd7
{[%clk 0:02:38.8]} 13. Kh2 {[%clk 0:01:59.3]} 13... h5 {[%clk 0:02:35.8]} 14.
Ba3 {[%clk 0:01:41.7]} 14... Na5 {[%clk 0:02:29.4]} 15. c5 {[%clk 0:01:38.8]}
15... d5 {[%clk 0:02:27.8]} 16. c4 {[%clk 0:01:36.3]} 16... Nxc4 {[%clk
0:02:25.2]} 17. Nxc4 {[%clk 0:01:36.3]} 17... dxc4 {[%clk 0:02:26.1]} 18. Qxc4
{[%clk 0:01:34.7]} 18... c6 {[%clk 0:02:26.4]} 19. f3 {[%clk 0:01:17.7]} 19...
exf3 {[%clk 0:02:24.6]} 20. Rxf3 {[%clk 0:01:17.6]} 20... Be4 {[%clk 0:02:24.7]}
21. Rxf6 {[%clk 0:01:03.7]} 21... gxf6 {[%clk 0:02:24.4]} 22. Qe2 {[%clk
0:00:56.2]} 22... Bxg2 {[%clk 0:02:20.7]} 23. Kxg2 {[%clk 0:00:53.5]} 23... Qd5+
{[%clk 0:02:20.7]} 24. Kh2 {[%clk 0:00:53]} 24... Re4 {[%clk 0:02:18.5]} 25. Rf1
{[%clk 0:00:49.1]} 25... Rae8 {[%clk 0:02:18]} 26. Bc1 {[%clk 0:00:46.4]} 26...
Kg7 {[%clk 0:01:59.7]} 27. Qf3 {[%clk 0:00:43.4]} 27... R8e6 {[%clk 0:01:56]}
28. Rf2 {[%clk 0:00:42.2]} 28... b6 {[%clk 0:01:51.2]} 29. cxb6 {[%clk
0:00:39.2]} 29... axb6 {[%clk 0:01:51.4]} 30. Qd1 {[%clk 0:00:19.6]} 30... c5
{[%clk 0:01:43.4]} 31. Qa4 {[%clk 0:00:12.5]} 31... cxd4 {[%clk 0:01:34]} 32.
exd4 {[%clk 0:00:13.4]} 32... Re2 {[%clk 0:01:31.9]} 33. Kg1 {[%clk 0:00:06.7]}
33... Re1+ {[%clk 0:01:31.4]} 34. Rf1 {[%clk 0:00:07.2]} 34... Qf3 {[%clk
0:01:30.7]} 35. Qc4 {[%clk 0:00:05.2]} 35... Qxg3+ {[%clk 0:01:30.2]} 0-1

[Event "*** SCC Grand Prix: Titled Tuesday Blitz"]
[Site "Chess.com"]
[Date "2020.06.02"]
[Round "7"]
[White "CzechmVIII"]
[Black "diablanni"]
[Result "0-1"]
[WhiteElo "2173"]
[BlackElo "2341"]
[TimeControl "180+1"]
[EndTime "11:19:06 PDT"]
[Termination "diablanni won by checkmate"]

1. e4 {[%clk 0:03:00.9]} 1... c5 {[%clk 0:02:59.8]} 2. Nf3 {[%clk 0:03:00.9]}
2... Nc6 {[%clk 0:02:59.8]} 3. Nc3 {[%clk 0:03:00.3]} 3... g6 {[%clk 0:02:59.4]}
4. d4 {[%clk 0:03:00.1]} 4... cxd4 {[%clk 0:02:59.2]} 5. Nxd4 {[%clk 0:03:00.8]}
5... Bg7 {[%clk 0:02:59.6]} 6. Be3 {[%clk 0:03:00.1]} 6... Nf6 {[%clk 0:02:59]}
7. Bc4 {[%clk 0:02:59.9]} 7... O-O {[%clk 0:02:58]} 8. Bb3 {[%clk 0:02:58.2]}
8... d6 {[%clk 0:02:57.7]} 9. f3 {[%clk 0:02:55.6]} 9... Bd7 {[%clk 0:02:57.3]}
10. h4 {[%clk 0:02:55.6]} 10... Ne5 {[%clk 0:02:50.1]} 11. Qd2 {[%clk
0:02:49.4]} 11... Rc8 {[%clk 0:02:48.8]} 12. O-O-O {[%clk 0:02:46.4]} 12... h5
{[%clk 0:02:46.1]} 13. Bh6 {[%clk 0:02:41.5]} 13... Nc4 {[%clk 0:02:30.7]} 14.
Bxc4 {[%clk 0:02:36.4]} 14... Rxc4 {[%clk 0:02:30.7]} 15. Bxg7 {[%clk
0:02:35.5]} 15... Kxg7 {[%clk 0:02:30.4]} 16. g4 {[%clk 0:02:35]} 16... hxg4
{[%clk 0:02:28]} 17. h5 {[%clk 0:02:34.7]} 17... Rh8 {[%clk 0:02:27.6]} 18. hxg6
{[%clk 0:02:33.9]} 18... fxg6 {[%clk 0:02:26.9]} 19. f4 {[%clk 0:02:32.3]} 19...
e5 {[%clk 0:02:26.8]} 20. Nde2 {[%clk 0:02:21.7]} 20... Rxh1 {[%clk 0:02:22.8]}
21. Rxh1 {[%clk 0:02:21.3]} 21... Nxe4 {[%clk 0:02:23]} 22. Nxe4 {[%clk
0:02:11.4]} 22... Rxe4 {[%clk 0:02:22.2]} 23. fxe5 {[%clk 0:02:08.6]} 23... Rxe2
{[%clk 0:02:21.1]} 24. Qh6+ {[%clk 0:02:07]} 24... Kf7 {[%clk 0:02:06.5]} 25.
Qh7+ {[%clk 0:01:48.4]} 25... Ke6 {[%clk 0:02:03.5]} 26. Qxg6+ {[%clk
0:01:46.6]} 26... Kxe5 {[%clk 0:02:03.4]} 27. Rh5+ {[%clk 0:01:36.7]} 27... Kf4
{[%clk 0:02:02.3]} 28. Qh6+ {[%clk 0:00:55.2]} 28... Kf3 {[%clk 0:01:35.2]} 29.
Qxd6 {[%clk 0:00:27.5]} 29... Qe7 {[%clk 0:01:25.9]} 30. Qd5+ {[%clk 0:00:16.7]}
30... Qe4 {[%clk 0:01:20.6]} 31. Qf7+ {[%clk 0:00:08.8]} 31... Kg2 {[%clk
0:01:15.3]} 32. Qxd7 {[%clk 0:00:04.5]} 32... Qxc2# {[%clk 0:01:12.9]} 0-1

[Event "*** SCC Grand Prix: Titled Tuesday Blitz"]
[Site "Chess.com"]
[Date "2020.06.02"]
[Round "7"]
[White "Bigfish1995"]
[Black "bascheyaro"]
[Result "1-0"]
[WhiteElo "2993"]
[BlackElo "2739"]
[TimeControl "180+1"]
[EndTime "11:19:09 PDT"]
[Termination "Bigfish1995 won by resignation"]

1. e4 {[%clk 0:02:47.2]} 1... e6 {[%clk 0:02:57.4]} 2. d4 {[%clk 0:02:46.7]}
2... d5 {[%clk 0:02:58]} 3. Nc3 {[%clk 0:02:46.1]} 3... Bb4 {[%clk 0:02:57.8]}
4. Qd3 {[%clk 0:02:46.3]} 4... dxe4 {[%clk 0:02:57.1]} 5. Qxe4 {[%clk
0:02:46.6]} 5... Nf6 {[%clk 0:02:57.1]} 6. Qh4 {[%clk 0:02:46.7]} 6... Nc6
{[%clk 0:02:57.2]} 7. Nf3 {[%clk 0:02:43.7]} 7... Nd5 {[%clk 0:02:57.4]} 8.
Qxd8+ {[%clk 0:02:41.7]} 8... Nxd8 {[%clk 0:02:58.3]} 9. Bd2 {[%clk 0:02:42]}
9... Nxc3 {[%clk 0:02:57.3]} 10. a3 {[%clk 0:02:35]} 10... Bd6 {[%clk
0:02:52.6]} 11. Bxc3 {[%clk 0:02:32.2]} 11... O-O {[%clk 0:02:49.6]} 12. Bd3
{[%clk 0:02:29.1]} 12... b6 {[%clk 0:02:48.7]} 13. Ng5 {[%clk 0:02:26.3]} 13...
f6 {[%clk 0:02:42.4]} 14. Bxh7+ {[%clk 0:02:23.6]} 14... Kh8 {[%clk 0:02:41.2]}
15. Be4 {[%clk 0:02:23]} 15... Rb8 {[%clk 0:02:06.2]} 16. Nf3 {[%clk 0:02:21]}
16... g5 {[%clk 0:01:59.6]} 17. g4 {[%clk 0:02:00.3]} 17... Kg7 {[%clk
0:01:45.7]} 18. h4 {[%clk 0:01:56.9]} 18... gxh4 {[%clk 0:01:44.6]} 19. Rxh4
{[%clk 0:01:55.8]} 19... Bb7 {[%clk 0:01:43.1]} 20. Nd2 {[%clk 0:01:47.5]} 20...
Bf4 {[%clk 0:01:37.9]} 21. Bxb7 {[%clk 0:01:43]} 21... Nxb7 {[%clk 0:01:38.8]}
22. Ke2 {[%clk 0:01:41.2]} 22... Nd6 {[%clk 0:01:35.1]} 23. Rah1 {[%clk
0:01:40.2]} 23... Rh8 {[%clk 0:01:33.4]} 24. Rxh8 {[%clk 0:01:36.8]} 24... Rxh8
{[%clk 0:01:34.3]} 25. Rxh8 {[%clk 0:01:37]} 25... Kxh8 {[%clk 0:01:35.1]} 26.
Kd3 {[%clk 0:01:37.1]} 26... Kg7 {[%clk 0:01:15.8]} 27. Bb4 {[%clk 0:01:35.3]}
27... Kf7 {[%clk 0:01:02.7]} 28. c4 {[%clk 0:01:33.9]} 28... Bxd2 {[%clk
0:00:37.2]} 29. Bxd6 {[%clk 0:01:29.4]} 29... Bc1 {[%clk 0:00:37.5]} 30. Bxc7
{[%clk 0:01:23.5]} 30... Bxb2 {[%clk 0:00:37.3]} 31. a4 {[%clk 0:01:24.1]} 31...
e5 {[%clk 0:00:17.6]} 32. d5 {[%clk 0:01:19.8]} 32... Bd4 {[%clk 0:00:17.1]} 33.
f4 {[%clk 0:01:18]} 1-0

[Event "*** SCC Grand Prix: Titled Tuesday Blitz"]
[Site "Chess.com"]
[Date "2020.06.02"]
[Round "7"]
[White "BillieKimbah"]
[Black "Niclox"]
[Result "0-1"]
[WhiteElo "2881"]
[BlackElo "2696"]
[TimeControl "180+1"]
[EndTime "11:19:11 PDT"]
[Termination "Niclox won by resignation"]

1. d4 {[%clk 0:03:00.9]} 1... Nf6 {[%clk 0:02:55.2]} 2. Nf3 {[%clk 0:03:01.1]}
2... g6 {[%clk 0:02:54.4]} 3. e3 {[%clk 0:03:01.1]} 3... Bg7 {[%clk 0:02:54.6]}
4. Be2 {[%clk 0:03:01.6]} 4... O-O {[%clk 0:02:54.2]} 5. O-O {[%clk 0:03:01.7]}
5... b6 {[%clk 0:02:54.8]} 6. c4 {[%clk 0:03:01.2]} 6... d5 {[%clk 0:02:53.8]}
7. Nc3 {[%clk 0:02:58.7]} 7... Bb7 {[%clk 0:02:52.5]} 8. cxd5 {[%clk 0:02:58.8]}
8... Nxd5 {[%clk 0:02:51.8]} 9. Bd2 {[%clk 0:02:59.5]} 9... Nd7 {[%clk
0:02:44.3]} 10. Qb3 {[%clk 0:02:59]} 10... Nxc3 {[%clk 0:02:43.7]} 11. Bxc3
{[%clk 0:02:58.4]} 11... e6 {[%clk 0:02:40.5]} 12. Rfd1 {[%clk 0:02:57.9]} 12...
a5 {[%clk 0:02:38.2]} 13. Rac1 {[%clk 0:02:54.8]} 13... Qe7 {[%clk 0:02:37.5]}
14. Be1 {[%clk 0:02:43]} 14... Rac8 {[%clk 0:02:34.1]} 15. a3 {[%clk 0:02:38.9]}
15... Rfd8 {[%clk 0:02:31.5]} 16. Bb5 {[%clk 0:02:20.6]} 16... Bd5 {[%clk
0:02:31]} 17. Qa4 {[%clk 0:02:12.3]} 17... Bxf3 {[%clk 0:02:30.5]} 18. gxf3
{[%clk 0:02:12.2]} 18... Nf6 {[%clk 0:02:24.8]} 19. Bc6 {[%clk 0:02:10]} 19...
Nd5 {[%clk 0:02:20.9]} 20. Qc4 {[%clk 0:02:05.5]} 20... Qg5+ {[%clk 0:02:19.2]}
21. Kh1 {[%clk 0:02:04]} 21... Qh5 {[%clk 0:02:20.1]} 22. Qe2 {[%clk 0:02:00]}
22... e5 {[%clk 0:02:17.2]} 23. Bc3 {[%clk 0:01:34.5]} 23... Rd6 {[%clk
0:02:09.9]} 24. dxe5 {[%clk 0:01:24.5]} 24... Nxc3 {[%clk 0:02:06.8]} 25. Qa6
{[%clk 0:00:35.7]} 25... Bxe5 {[%clk 0:01:39.5]} 26. Qxc8+ {[%clk 0:00:34.3]}
26... Kg7 {[%clk 0:01:39.8]} 27. f4 {[%clk 0:00:25.6]} 27... Bxf4 {[%clk
0:01:18.7]} 28. exf4 {[%clk 0:00:23.4]} 28... Nxd1 {[%clk 0:01:19]} 29. Qe8
{[%clk 0:00:15.7]} 29... Nxf2+ {[%clk 0:01:17.1]} 30. Kg2 {[%clk 0:00:16.1]}
30... Ng4 {[%clk 0:01:16.9]} 31. h3 {[%clk 0:00:12.6]} 31... Rd2+ {[%clk
0:01:15.9]} 32. Kg3 {[%clk 0:00:12.8]} 32... Rd3+ {[%clk 0:01:13]} 33. Bf3
{[%clk 0:00:12.1]} 33... Rxf3+ {[%clk 0:01:10.7]} 34. Kxf3 {[%clk 0:00:12.5]}
34... Nf6+ {[%clk 0:01:11.6]} 0-1

[Event "*** SCC Grand Prix: Titled Tuesday Blitz"]
[Site "Chess.com"]
[Date "2020.06.02"]
[Round "7"]
[White "2nd_life"]
[Black "Sharpchess22"]
[Result "0-1"]
[WhiteElo "2430"]
[BlackElo "2732"]
[TimeControl "180+1"]
[EndTime "11:19:11 PDT"]
[Termination "Sharpchess22 won by resignation"]

1. e4 {[%clk 0:03:00.9]} 1... c6 {[%clk 0:02:59.8]} 2. d4 {[%clk 0:02:58.5]}
2... d5 {[%clk 0:02:59.9]} 3. e5 {[%clk 0:02:59]} 3... Bf5 {[%clk 0:02:59.3]} 4.
h4 {[%clk 0:02:59.3]} 4... h5 {[%clk 0:02:58.4]} 5. Bd3 {[%clk 0:02:59.5]} 5...
Bxd3 {[%clk 0:02:58.1]} 6. Qxd3 {[%clk 0:03:00.4]} 6... e6 {[%clk 0:02:58.6]} 7.
Nf3 {[%clk 0:03:00.3]} 7... c5 {[%clk 0:02:50.9]} 8. c4 {[%clk 0:02:34.5]} 8...
Nc6 {[%clk 0:02:49.4]} 9. cxd5 {[%clk 0:02:27.3]} 9... Qxd5 {[%clk 0:02:48.7]}
10. Nc3 {[%clk 0:02:23.8]} 10... Qd7 {[%clk 0:02:48.5]} 11. Be3 {[%clk
0:02:12.7]} 11... a6 {[%clk 0:02:43.1]} 12. Rd1 {[%clk 0:01:39.3]} 12... cxd4
{[%clk 0:02:42.4]} 13. Bxd4 {[%clk 0:01:38.9]} 13... Nxd4 {[%clk 0:02:29.7]} 14.
Nxd4 {[%clk 0:01:31.8]} 14... Nh6 {[%clk 0:02:29.2]} 15. Qe4 {[%clk 0:01:25.5]}
15... Qc7 {[%clk 0:02:26.4]} 16. O-O {[%clk 0:01:08.8]} 16... Ng4 {[%clk
0:02:25.7]} 17. Rfe1 {[%clk 0:01:00.7]} 17... Bc5 {[%clk 0:02:22]} 18. f3 {[%clk
0:00:44.5]} 18... Nh6 {[%clk 0:02:14.9]} 19. Kh2 {[%clk 0:00:42.4]} 19... O-O
{[%clk 0:02:06.8]} 20. Nb3 {[%clk 0:00:36.7]} 20... Be7 {[%clk 0:02:04.5]} 21.
g3 {[%clk 0:00:35.8]} 21... Rad8 {[%clk 0:02:00.8]} 22. Kg2 {[%clk 0:00:27.9]}
22... b5 {[%clk 0:01:58.4]} 23. a3 {[%clk 0:00:24.6]} 23... g6 {[%clk
0:01:44.6]} 24. Rc1 {[%clk 0:00:14.8]} 24... Qb6 {[%clk 0:01:42.3]} 25. Qe3
{[%clk 0:00:10]} 25... Qxe3 {[%clk 0:01:40.9]} 26. Rxe3 {[%clk 0:00:10.9]} 26...
Nf5 {[%clk 0:01:40.7]} 27. Re2 {[%clk 0:00:11.1]} 27... Rd3 {[%clk 0:01:36.5]}
28. Na5 {[%clk 0:00:07.4]} 28... Rc8 {[%clk 0:01:34.8]} 29. Na2 {[%clk
0:00:05.1]} 29... Rxc1 {[%clk 0:01:28.5]} 30. Nxc1 {[%clk 0:00:06]} 30... Rd1
{[%clk 0:01:28.2]} 31. Ncb3 {[%clk 0:00:05.7]} 31... g5 {[%clk 0:01:27.4]} 32.
hxg5 {[%clk 0:00:05.4]} 32... Bxg5 {[%clk 0:01:27.2]} 33. f4 {[%clk 0:00:05.9]}
33... Bd8 {[%clk 0:01:27.1]} 34. Nc6 {[%clk 0:00:05.6]} 34... Bb6 {[%clk
0:01:27.1]} 35. Nb4 {[%clk 0:00:04.4]} 35... Rg1+ {[%clk 0:01:26.5]} 36. Kf3
{[%clk 0:00:04.2]} 36... Rxg3+ {[%clk 0:01:26]} 37. Ke4 {[%clk 0:00:04.6]} 37...
Rxb3 {[%clk 0:01:25.6]} 0-1

[Event "*** SCC Grand Prix: Titled Tuesday Blitz"]
[Site "Chess.com"]
[Date "2020.06.02"]
[Round "7"]
[White "ChronicUnhappiness"]
[Black "abfchess"]
[Result "1-0"]
[WhiteElo "2310"]
[BlackElo "2098"]
[TimeControl "180+1"]
[EndTime "11:19:11 PDT"]
[Termination "ChronicUnhappiness won by resignation"]

1. c4 {[%clk 0:03:00.9]} 1... e6 {[%clk 0:02:58.8]} 2. d4 {[%clk 0:03:00.3]}
2... d5 {[%clk 0:02:58.3]} 3. Nc3 {[%clk 0:02:57.5]} 3... Be7 {[%clk 0:02:55.4]}
4. Nf3 {[%clk 0:02:56.7]} 4... Nf6 {[%clk 0:02:53.4]} 5. Bg5 {[%clk 0:02:56.6]}
5... O-O {[%clk 0:02:52.1]} 6. e3 {[%clk 0:02:56.8]} 6... h6 {[%clk 0:02:45.9]}
7. Bxf6 {[%clk 0:02:56.1]} 7... Bxf6 {[%clk 0:02:42.3]} 8. Bd3 {[%clk
0:02:55.5]} 8... b6 {[%clk 0:02:34.1]} 9. O-O {[%clk 0:02:52.3]} 9... dxc4
{[%clk 0:02:27.1]} 10. Bxc4 {[%clk 0:02:51.7]} 10... Bb7 {[%clk 0:02:27.4]} 11.
Qe2 {[%clk 0:02:48.3]} 11... c5 {[%clk 0:02:26.3]} 12. Rad1 {[%clk 0:02:36.5]}
12... Qe7 {[%clk 0:02:25.8]} 13. Ne5 {[%clk 0:02:32.2]} 13... Bxe5 {[%clk
0:02:08.4]} 14. dxe5 {[%clk 0:02:31.5]} 14... Nc6 {[%clk 0:02:08.6]} 15. f4
{[%clk 0:02:30.3]} 15... Rad8 {[%clk 0:02:08.6]} 16. Nb5 {[%clk 0:02:21.4]}
16... Ba6 {[%clk 0:01:57.1]} 17. Nd6 {[%clk 0:02:19.5]} 17... Bxc4 {[%clk
0:01:57.5]} 18. Qxc4 {[%clk 0:02:19.4]} 18... f6 {[%clk 0:01:33.9]} 19. Qe4
{[%clk 0:02:10.5]} 19... Nb4 {[%clk 0:01:26.4]} 20. exf6 {[%clk 0:01:31.1]}
20... Rxf6 {[%clk 0:01:05]} 21. Nc4 {[%clk 0:00:49]} 21... Rxd1 {[%clk
0:01:00.9]} 22. Rxd1 {[%clk 0:00:48]} 22... Nxa2 {[%clk 0:01:01.5]} 23. Ne5
{[%clk 0:00:47]} 23... Nb4 {[%clk 0:00:43.6]} 24. Rd7 {[%clk 0:00:40.5]} 24...
Qe8 {[%clk 0:00:43.7]} 25. Qb7 {[%clk 0:00:35.6]} 1-0